bitfinex/quotes_BTCUSD_20250108
["timestamp","ask_amount","ask_price","bid_price","bid_amount"]
[1736339472852,0.31446976,95161.0,95160.0,0.0001706]
[1736339474543,0.31446976,95161.0,95160.0,0.0091706]
[1736339474743,0.31546976,95161.0,95160.0,0.0091706]
[1736339476735,0.54536976,95161.0,95160.0,0.0091706]
[1736339477814,0.54536976,95161.0,95160.0,0.0001706]
[1736339478028,0.46446976,95161.0,95160.0,0.0001706]
[1736339478239,0.31446976,95161.0,95160.0,0.0091706]
[1736339478455,0.31746976,95161.0,95160.0,0.0091706]
[1736339478705,0.003,95161.0,95160.0,1.5091706]
[1736339478913,0.3274,95164.0,95160.0,1.50993085]
[1736339479128,0.52462976,95163.0,95160.0,1.52201483]
[1736339479342,0.003,95161.0,95160.0,1.52201483]
[1736339479557,0.003,95161.0,95160.0,0.02201483]
[1736339479772,0.10429976,95163.0,95160.0,0.02201483]
[1736339479956,0.10429976,95163.0,95160.0,0.0091706]
[1736339480168,0.210167,95162.0,95160.0,0.0001706]
[1736339480379,0.210167,95162.0,95160.0,0.0091706]
[1736339480590,0.210167,95162.0,95161.0,0.01208083]
[1736339481038,0.210167,95162.0,95160.0,0.00093085]
[1736339481290,0.210167,95162.0,95160.0,0.00993085]
[1736339481528,0.10429976,95163.0,95161.0,0.01208083]
[1736339481770,0.10529976,95163.0,95161.0,0.02108083]
[1736339482031,0.001,95162.0,95161.0,0.009]
[1736339482316,0.21017,95161.0,95160.0,0.00093085]
[1736339482577,0.21017,95161.0,95160.0,0.0001706]
[1736339483035,0.31446976,95161.0,95160.0,0.0001706]
[1736339484443,0.31446976,95161.0,95160.0,0.0091706]
[1736339484925,0.31446976,95161.0,95160.0,0.0001706]
[1736339485095,0.31446976,95161.0,95160.0,0.0091706]
[1736339485300,0.31546976,95161.0,95160.0,0.0091706]
[1736339485718,0.31446976,95161.0,95160.0,0.0091706]
[1736339487463,0.31546976,95161.0,95160.0,0.0091706]
[1736339487921,0.31546976,95161.0,95160.0,0.0001706]
[1736339488095,0.31546976,95161.0,95160.0,0.0091706]
[1736339488306,0.31446976,95161.0,95160.0,0.0091706]
[1736339488510,0.31546976,95161.0,95160.0,0.0091706]
[1736339493662,0.79286976,95161.0,95160.0,0.0091706]
[1736339494438,0.79286976,95161.0,95160.0,0.0001706]
[1736339494843,0.79286976,95161.0,95160.0,0.0091706]
[1736339495284,0.79186976,95161.0,95160.0,0.0091706]
[1736339495483,0.79386976,95161.0,95160.0,0.0091706]
[1736339496057,0.79186976,95161.0,95160.0,0.0091706]
[1736339496180,0.64186976,95161.0,95160.0,0.0091706]
[1736339496389,0.64486976,95161.0,95160.0,0.0091706]
[1736339497290,0.72026976,95161.0,95160.0,0.0091706]
[1736339497491,0.87026976,95161.0,95160.0,0.0091706]
[1736339502124,0.87026976,95161.0,95160.0,0.0001706]
[1736339502323,0.86726976,95161.0,95160.0,0.0001706]
[1736339502524,0.96726976,95161.0,95160.0,0.0091706]
[1736339502736,0.87026976,95161.0,95160.0,0.0091706]
[1736339502938,0.79486976,95161.0,95160.0,0.0001706]
[1736339503123,0.79186976,95161.0,95160.0,0.0001706]
[1736339504760,1.14946952,95161.0,95160.0,0.0091706]
[1736339505642,1.14516976,95161.0,95160.0,0.0091706]
[1736339506042,1.1764069,95161.0,95160.0,0.0091706]
[1736339506636,1.14516976,95161.0,95160.0,0.0091706]
[1736339507079,1.14516976,95161.0,95160.0,0.0081706]
[1736339508233,1.17640214,95161.0,95160.0,0.0081706]
[1736339508491,1.2807019,95161.0,95160.0,0.0081706]
[1736339508668,1.17639629,95161.0,95160.0,0.0081706]
[1736339509014,1.14516976,95161.0,95160.0,0.0081706]
[1736339513711,1.12216976,95161.0,95160.0,0.0081706]
[1736339513939,1.07546976,95161.0,95160.0,0.0081706]
[1736339514269,0.79486976,95161.0,95160.0,0.0081706]
[1736339514608,0.89486976,95161.0,95160.0,0.0081706]
[1736339515453,0.79486976,95161.0,95160.0,0.0081706]
[1736339515672,0.64486976,95161.0,95160.0,0.0081706]
[1736339519951,0.87176976,95161.0,95160.0,0.0081706]
[1736339520161,1.11870889,95161.0,95160.0,0.0081706]
[1736339520395,1.01916976,95161.0,95160.0,0.0081706]
[1736339520607,1.11916976,95161.0,95160.0,0.0081706]
[1736339520837,1.14216976,95161.0,95160.0,0.0081706]
[1736339521060,1.13916976,95161.0,95160.0,0.0081706]
[1736339521498,1.14316976,95161.0,95160.0,0.0081706]
[1736339521926,0.460187,95153.0,95152.0,0.00093085]
[1736339522166,0.460187,95153.0,95152.0,0.0001706]
[1736339522167,0.56448676,95153.0,95152.0,0.0001706]
[1736339522581,0.46448676,95153.0,95152.0,0.0001706]
[1736339523687,0.46448676,95153.0,95152.0,0.0091706]
[1736339524109,0.46648676,95153.0,95152.0,0.0091706]
[1736339524310,0.31648676,95153.0,95152.0,0.0091706]
[1736339525802,0.34772658,95153.0,95152.0,0.0091706]
[1736339526910,0.59772658,95153.0,95152.0,0.0091706]
[1736339527161,0.67422658,95153.0,95152.0,0.0091706]
[1736339527387,0.59772658,95153.0,95152.0,0.0091706]
[1736339528037,0.59572658,95153.0,95152.0,0.0001706]
[1736339528241,0.58773658,95153.0,95152.0,0.0001706]
[1736339528468,0.58773658,95153.0,95152.0,0.0091706]
[1736339528912,0.58473658,95153.0,95152.0,0.0091706]
[1736339529153,0.48473658,95153.0,95152.0,0.0001706]
[1736339529635,0.48473658,95153.0,95152.0,0.0091706]
[1736339530315,0.48773658,95153.0,95152.0,0.0091706]
[1736339530819,0.48473658,95153.0,95152.0,0.0091706]
[1736339531074,0.48773658,95153.0,95152.0,0.0091706]
[1736339531323,0.48773658,95153.0,95152.0,0.0001706]
[1736339531569,0.58773658,95153.0,95152.0,0.0091706]
[1736339531821,0.58473658,95153.0,95152.0,0.0001706]
[1736339532084,0.68773658,95153.0,95152.0,0.0091706]
[1736339532380,1.01513658,95153.0,95152.0,0.0001706]
[1736339532628,1.16243658,95153.0,95152.0,0.0090006]
[1736339532876,1.19367793,95153.0,95152.0,0.0090006]
[1736339533141,1.19367793,95153.0,95152.0,6e-07]
[1736339533569,1.19067793,95153.0,95152.0,6e-07]
[1736339533984,1.19367793,95153.0,95152.0,6e-07]
[1736339534448,1.19067793,95153.0,95152.0,0.0090006]
[1736339534682,1.19067793,95153.0,95152.0,6e-07]
[1736339535115,1.37825927,95153.0,95152.0,0.0070006]
[1736339535313,1.38125927,95153.0,95152.0,6e-07]
[1736339535514,1.19367793,95153.0,95152.0,6e-07]
[1736339535724,1.19367793,95153.0,95152.0,0.0070006]
[1736339536155,1.38125927,95153.0,95152.0,0.0070006]
[1736339536514,1.38125927,95153.0,95152.0,0.00324952]
[1736339536719,1.37825927,95153.0,95152.0,0.00324952]
[1736339537238,1.38225927,95153.0,95152.0,0.00324952]
[1736339537449,1.19467793,95153.0,95152.0,0.00324952]
[1736339538549,1.38362457,95153.0,95152.0,0.00324952]
[1736339538751,0.2,95132.0,95121.0,0.0001706]
[1736339538955,0.560251,95124.0,95121.0,0.0001706]
[1736339539162,0.1,95114.0,95103.0,8.53e-05]
[1736339539372,0.66457276,95114.0,95103.0,8.53e-05]
[1736339539585,0.66457276,95114.0,95104.0,0.00084561]
[1736339539795,0.46457276,95114.0,95104.0,0.00084561]
[1736339540221,0.66457276,95114.0,95113.0,0.00022146]
[1736339540433,1.11927252,95114.0,95113.0,4.6e-07]
[1736339540640,1.20127252,95114.0,95113.0,4.6e-07]
[1736339541049,1.20327252,95114.0,95113.0,4.6e-07]
[1736339541666,1.27111922,95114.0,95113.0,4.6e-07]
[1736339541878,0.35,95105.0,95104.0,8.52e-05]
[1736339542080,0.35,95105.0,95104.0,0.00023779]
[1736339542081,0.68759276,95105.0,95104.0,0.00023779]
[1736339543272,1.10478094,95105.0,95104.0,0.00023779]
[1736339543692,1.01499276,95105.0,95104.0,0.00023779]
[1736339544542,1.01599276,95105.0,95104.0,0.00823779]
[1736339544766,0.1,95078.0,95054.0,0.077]
[1736339545011,0.46468176,95065.0,95043.0,0.077]
[1736339545248,0.46468176,95065.0,95064.0,0.00022139]
[1736339546092,0.46468176,95065.0,95064.0,0.00922139]
[1736339546093,0.31568176,95065.0,95064.0,0.00922139]
[1736339546914,0.31468176,95065.0,95064.0,0.09082139]
[1736339547040,0.31468176,95065.0,95064.0,0.09990353]
[1736339547245,0.31468176,95065.0,95064.0,0.00922139]
[1736339548947,0.31468176,95065.0,95064.0,0.02201429]
[1736339549284,0.31468176,95065.0,95064.0,0.00922139]
[1736339550940,0.10529976,95065.0,95064.0,0.05472139]
[1736339551421,0.001,95065.0,95064.0,0.13042139]
[1736339551625,0.001,95065.0,95064.0,0.17779007]
[1736339552052,0.001,95065.0,95064.0,0.14363228]
[1736339552253,0.10529976,95065.0,95064.0,0.14363228]
[1736339552459,0.10429976,95065.0,95064.0,0.13463228]
[1736339552661,0.10529976,95065.0,95064.0,0.13763228]
[1736339553259,0.10529976,95065.0,95064.0,0.12442139]
[1736339553674,0.10529976,95065.0,95064.0,0.13763228]
[1736339554128,0.10529976,95065.0,95064.0,0.15139551]
[1736339554302,0.001,95065.0,95064.0,0.15239551]
[1736339554473,0.420726,95074.0,95064.0,0.14939551]
[1736339554693,0.10429976,95073.0,95064.0,0.13618462]
[1736339554898,0.001,95065.0,95064.0,0.02398462]
[1736339555115,0.10429976,95073.0,95064.0,0.01498462]
[1736339555309,0.10429976,95073.0,95065.0,0.03546412]
[1736339555924,0.210366,95072.0,95065.0,0.03546412]
[1736339556132,0.10429976,95071.0,95065.0,0.03546412]
[1736339556336,0.10429976,95071.0,95064.0,0.01474517]
[1736339557444,0.10417327,95071.0,95064.0,0.01398462]
[1736339557659,0.10417327,95071.0,95064.0,0.22436862]
[1736339557872,0.10417327,95071.0,95065.0,0.009]
[1736339558091,0.001,95073.0,95065.0,0.219382]
[1736339558308,0.3274,95077.0,95064.0,0.01398462]
[1736339558309,0.10429976,95072.0,95066.0,0.05184425]
[1736339558526,0.001,95071.0,95066.0,0.26222425]
[1736339558971,0.10429976,95072.0,95066.0,0.26222425]
[1736339559186,0.001,95071.0,95066.0,0.05184425]
[1736339559391,0.001,95071.0,95067.0,0.01376323]
[1736339559596,0.10429976,95072.0,95067.0,0.01376323]
[1736339559802,0.001,95071.0,95067.0,0.01376323]
[1736339560648,0.001,95071.0,95066.0,0.01076055]
[1736339561023,0.001,95071.0,95066.0,0.00076055]
[1736339561261,0.10429976,95072.0,95066.0,0.00276055]
[1736339561458,0.001,95071.0,95066.0,0.01176055]
[1736339561816,0.001,95071.0,95066.0,0.011]
[1736339562217,0.10429976,95072.0,95064.0,0.00098194]
[1736339562423,0.10429976,95072.0,95064.0,0.01960613]
[1736339562635,0.10529976,95072.0,95066.0,0.011]
[1736339562827,0.10429976,95072.0,95066.0,0.002]
[1736339564280,0.001,95071.0,95066.0,0.011]
[1736339564485,0.001,95071.0,95067.0,0.01369128]
[1736339564684,0.10429976,95072.0,95067.0,0.01369128]
[1736339564901,0.10529976,95072.0,95068.0,0.04603686]
[1736339565080,0.10429976,95072.0,95068.0,0.04603686]
[1736339565484,0.001,95071.0,95068.0,0.04603686]
[1736339565690,0.10429976,95072.0,95068.0,0.01368812]
[1736339566152,0.10529976,95072.0,95068.0,0.02268812]
[1736339566356,0.31566676,95072.0,95068.0,0.02268812]
[1736339567025,0.10529976,95072.0,95068.0,0.02268812]
[1736339567199,0.10529976,95072.0,95068.0,0.02468812]
[1736339567602,0.10429976,95072.0,95068.0,0.04913654]
[1736339567945,0.001,95071.0,95068.0,0.05813654]
[1736339568171,0.10429976,95072.0,95068.0,0.04913654]
[1736339568415,0.210369,95071.0,95068.0,0.01568812]
[1736339568698,0.210373,95069.0,95068.0,0.02268812]
[1736339568905,0.31467276,95069.0,95064.0,0.00098194]
[1736339569135,0.10429976,95068.0,95064.0,0.00022139]
[1736339569340,0.10429976,95068.0,95065.0,0.01369759]
[1736339570183,0.10429976,95068.0,95064.0,0.00098194]
[1736339570424,0.31467576,95068.0,95064.0,0.00098194]
[1736339570653,0.31467576,95068.0,95065.0,0.01369759]
[1736339570870,0.52505176,95068.0,95065.0,0.01369759]
[1736339571319,0.52505176,95068.0,95064.0,0.00098194]
[1736339571534,0.52505176,95068.0,95064.0,0.00022139]
[1736339571741,0.52605176,95068.0,95064.0,0.00922139]
[1736339571963,0.52505176,95068.0,95065.0,0.002]
[1736339572404,0.52505176,95068.0,95065.0,0.009]
[1736339572405,0.52605176,95068.0,95065.0,0.009]
[1736339572861,0.52505176,95068.0,95064.0,0.00298194]
[1736339573262,0.15,95065.0,95064.0,0.00098194]
[1736339573510,0.25429976,95065.0,95064.0,0.00098194]
[1736339573751,0.25429976,95065.0,95064.0,0.00022139]
[1736339575403,0.25429976,95065.0,95064.0,0.00922139]
[1736339575681,0.25429976,95065.0,95064.0,0.00022139]
[1736339575888,0.25529976,95065.0,95064.0,0.00922139]
[1736339576644,0.43109976,95065.0,95064.0,0.00922139]
[1736339577907,0.45192319,95065.0,95064.0,0.00922139]
[1736339578113,0.35192319,95065.0,95064.0,0.00922139]
[1736339578759,0.27612319,95065.0,95064.0,0.00922139]
[1736339581120,0.90398325,95065.0,95064.0,0.00922139]
[1736339581872,0.77992319,95065.0,95064.0,0.00922139]
[1736339582506,0.95212319,95065.0,95064.0,0.00922139]
[1736339582710,0.1,95057.0,95056.0,0.00093115]
[1736339582921,0.1,95042.0,95030.0,0.00076055]
[1736339583123,0.210457,95031.0,95030.0,0.00076055]
[1736339583327,0.31475676,95031.0,95030.0,0.00076055]
[1736339583915,0.31475676,95031.0,95013.0,0.07986055]
[1736339583916,0.210468,95026.0,95013.0,0.07986055]
[1736339584138,0.31476776,95026.0,95013.0,0.07986055]
[1736339585033,0.31476776,95026.0,95025.0,0.00016583]
[1736339585938,0.31576776,95026.0,95025.0,0.00916583]
[1736339587140,0.31476776,95026.0,95025.0,0.00016583]
[1736339587487,0.31576776,95026.0,95025.0,0.00916583]
[1736339588843,0.46576776,95026.0,95025.0,0.00916583]
[1736339589290,1.03726776,95026.0,95025.0,0.00916583]
[1736339589499,1.03726776,95026.0,94982.0,1.92113]
[1736339589500,0.1,94986.0,94977.0,0.41411308]
[1736339589709,0.360575,94978.0,94977.0,0.45553292]
[1736339589913,0.46487476,94978.0,94977.0,0.00015265]
[1736339590773,0.1,94996.0,94977.0,0.00015265]
[1736339590774,0.210544,94992.0,94977.0,0.00015265]
[1736339590980,0.210548,94990.0,94977.0,0.00015265]
[1736339591189,0.001,94978.0,94977.0,0.00915265]
[1736339591611,0.001,94978.0,94977.0,0.00015265]
[1736339591821,0.002,94978.0,94977.0,0.03483171]
[1736339592236,0.10429976,94989.0,94977.0,0.02583171]
[1736339592414,0.10429976,94989.0,94986.0,8.54e-05]
[1736339592782,0.210552,94988.0,94986.0,8.54e-05]
[1736339592987,0.10429976,94987.0,94986.0,8.54e-05]
[1736339593442,0.25429976,94987.0,94986.0,8.54e-05]
[1736339594228,0.25429976,94987.0,94986.0,0.0090854]
[1736339594229,0.25529976,94987.0,94986.0,0.0090854]
[1736339594653,0.25529976,94987.0,94986.0,8.54e-05]
[1736339594654,0.25429976,94987.0,94986.0,8.54e-05]
[1736339594871,0.41117584,94987.0,94986.0,0.0080854]
[1736339595332,0.33363616,94987.0,94986.0,8.54e-05]
[1736339595550,0.33463616,94987.0,94986.0,0.0090854]
[1736339595769,0.45763616,94987.0,94986.0,0.0090854]
[1736339595989,0.45663616,94987.0,94986.0,0.0090854]
[1736339596214,0.54083616,94987.0,94986.0,0.01853147]
[1736339596418,0.65574371,94987.0,94986.0,0.00853273]
[1736339596623,0.75574371,94987.0,94986.0,0.00853273]
[1736339596860,0.59464395,94987.0,94986.0,0.00853273]
[1736339597258,0.59464395,94987.0,94986.0,7.3e-07]
[1736339597473,0.65044395,94987.0,94986.0,7.3e-07]
[1736339597687,0.38744395,94987.0,94986.0,7.3e-07]
[1736339598258,0.38744395,94987.0,94986.0,0.00700073]
[1736339598432,0.39144395,94987.0,94986.0,0.00450073]
[1736339598633,0.210575,94978.0,94977.0,0.00091334]
[1736339598834,0.31487476,94978.0,94977.0,0.00091334]
[1736339599544,0.46487476,94978.0,94977.0,0.00015265]
[1736339600125,0.46687476,94978.0,94977.0,0.00415265]
[1736339600695,0.69097514,94978.0,94977.0,0.00415265]
[1736339600890,0.79097514,94978.0,94977.0,0.00415265]
[1736339601144,0.68987476,94978.0,94977.0,0.00415265]
[1736339601886,0.46487476,94978.0,94977.0,0.00415265]
[1736339602115,0.31687476,94978.0,94977.0,0.00415265]
[1736339602325,0.10629976,94978.0,94977.0,0.00015265]
[1736339602545,0.002,94978.0,94977.0,0.00215265]
[1736339602993,0.02085386,94998.0,94977.0,0.01065851]
[1736339603258,0.002,94978.0,94977.0,0.01924053]
[1736339603500,0.002,94978.0,94977.0,0.01265851]
[1736339603737,0.210549,94990.0,94977.0,0.01924053]
[1736339603935,0.10529976,94978.0,94977.0,0.01773467]
[1736339604804,0.10529976,94978.0,94977.0,0.00915265]
[1736339605483,0.0107743,94992.0,94977.0,0.00915265]
[1736339605484,0.210548,94991.0,94977.0,0.00015265]
[1736339605692,0.10429976,94990.0,94978.0,0.210575]
[1736339605907,0.10429976,94990.0,94979.0,0.02107277]
[1736339606130,0.10429976,94990.0,94979.0,0.00857822]
[1736339606535,0.31484776,94990.0,94979.0,0.00857822]
[1736339606744,0.10429976,94990.0,94979.0,0.00857822]
[1736339606964,0.10529976,94990.0,94977.0,0.00091334]
[1736339607171,0.210567,94982.0,94979.0,0.002]
[1736339607386,0.10429976,94981.0,94977.0,0.00015265]
[1736339608032,0.10429976,94981.0,94978.0,0.00858012]
[1736339608486,0.10429976,94981.0,94977.0,0.00091334]
[1736339608843,0.10429976,94981.0,94979.0,0.007]
[1736339609101,0.10429976,94981.0,94978.0,0.00858012]
[1736339609294,0.10429976,94981.0,94977.0,0.00091334]
[1736339609497,0.10529976,94981.0,94979.0,0.00857822]
[1736339609683,0.10429976,94981.0,94978.0,0.00858012]
[1736339609886,0.10429976,94981.0,94980.0,0.00857633]
[1736339610122,0.10529976,94981.0,94979.0,0.01757822]
[1736339610286,0.10429976,94981.0,94977.0,0.00015265]
[1736339610554,0.10529976,94981.0,94978.0,0.00858012]
[1736339611131,0.001,94981.0,94979.0,0.02290735]
[1736339611363,0.001,94981.0,94980.0,0.00857633]
[1736339612069,0.210554,94988.0,94980.0,0.00857633]
[1736339612265,0.001,94981.0,94980.0,0.00857633]
[1736339612491,0.10529976,94981.0,94979.0,0.009]
[1736339612700,0.31486976,94980.0,94977.0,0.00091334]
[1736339612926,0.31486976,94980.0,94977.0,0.00015265]
[1736339612927,0.52544076,94980.0,94977.0,0.00015265]
[1736339613421,0.360575,94978.0,94977.0,0.00015265]
[1736339613658,0.46487476,94978.0,94977.0,0.00015265]
[1736339614971,0.48787476,94978.0,94977.0,0.00015265]
[1736339615213,0.46487476,94978.0,94977.0,0.00915265]
[1736339615711,0.31487476,94978.0,94977.0,0.00015265]
[1736339615987,0.31587476,94978.0,94977.0,0.00915265]
[1736339616159,0.10429976,94978.0,94977.0,0.00015265]
[1736339616308,0.10629976,94978.0,94977.0,0.00015265]
[1736339616522,0.002,94978.0,94977.0,0.00015265]
[1736339616705,0.002,94978.0,94977.0,0.02612051]
[1736339616910,0.210543,94993.0,94978.0,0.210575]
[1736339617225,0.210546,94991.0,94979.0,1.50714852]
[1736339617426,0.21055,94989.0,94979.0,0.00714852]
[1736339617629,0.10429976,94988.0,94979.0,0.00714852]
[1736339617948,0.10429976,94988.0,94979.0,0.210571]
[1736339618200,0.10429976,94988.0,94980.0,0.00714694]
[1736339618600,0.210516,95005.0,94980.0,0.00714694]
[1736339618946,0.002,94993.0,94991.0,0.210546]
[1736339619268,0.002,94993.0,94992.0,0.14014057]
[1736339619447,0.267218,95031.0,94992.0,0.18524046]
[1736339619448,0.210485,95019.0,94992.0,0.18524046]
[1736339619666,0.02127091,95028.0,94993.0,0.22906505]
[1736339619667,0.210506,95009.0,94993.0,0.22906505]
[1736339619807,0.002,95003.0,94993.0,0.22906505]
[1736339620025,0.002,95003.0,94997.0,0.210531]
[1736339620227,0.10429976,95008.0,94997.0,0.210531]
[1736339620406,0.10429976,95008.0,94999.0,0.210528]
[1736339620606,0.10429976,95008.0,95000.0,0.04467015]
[1736339620807,0.10429976,95008.0,95000.0,0.00711531]
[1736339622086,0.001,95003.0,95001.0,0.210524]
[1736339622535,0.10429976,95008.0,95002.0,0.00711215]
[1736339622753,0.10529976,95008.0,95002.0,0.00711215]
[1736339622921,0.10429976,95008.0,95002.0,0.00711215]
[1736339623136,0.10429976,95008.0,95000.0,0.00076069]
[1736339623360,0.10429976,95008.0,95003.0,0.00711057]
[1736339623595,0.10429976,95008.0,95001.0,0.009]
[1736339623596,0.10429976,95008.0,95004.0,0.00710899]
[1736339624030,0.10429976,95008.0,95001.0,0.00076069]
[1736339624242,0.10429976,95008.0,95005.0,0.00710741]
[1736339624496,0.10429976,95008.0,95001.0,0.00076069]
[1736339624693,0.10429976,95008.0,95002.0,0.02113317]
[1736339624904,0.10429976,95008.0,95002.0,0.00711215]
[1736339625318,0.10429976,95008.0,95000.0,0.00080069]
[1736339625566,0.10529976,95008.0,95003.0,0.00711057]
[1736339625750,0.10529976,95008.0,95004.0,0.00710899]
[1736339625955,0.421021,95007.0,95002.0,0.00976069]
[1736339626172,0.10529976,95008.0,95002.0,0.00976069]
[1736339626173,0.57103,95005.0,95002.0,0.00976069]
[1736339626332,0.360519,95003.0,95002.0,0.00076069]
[1736339626530,0.46481876,95003.0,95002.0,0.00076069]
[1736339626987,0.46481876,95003.0,95000.0,4e-05]
[1736339627186,0.360524,95001.0,95000.0,4e-05]
[1736339627370,0.46482376,95001.0,95000.0,4e-05]
[1736339628397,0.59906437,95001.0,95000.0,4e-05]
[1736339629014,0.60930971,95001.0,95000.0,4e-05]
[1736339629613,0.61030971,95001.0,95000.0,4e-05]
[1736339630060,0.61030971,95001.0,95000.0,0.00604]
[1736339630358,0.60930971,95001.0,95000.0,4e-05]
[1736339630684,0.70930971,95001.0,95000.0,4e-05]
[1736339630919,0.70930971,95001.0,95000.0,0.00204]
[1736339631122,0.71230971,95001.0,95000.0,0.00204]
[1736339631313,0.79030971,95001.0,95000.0,0.00204]
[1736339631521,0.88830185,95001.0,95000.0,0.00204]
[1736339631661,0.79030971,95001.0,95000.0,0.00204]
[1736339632067,0.69030971,95001.0,95000.0,0.00204]
[1736339632735,0.48930971,95001.0,95000.0,0.00204]
[1736339633186,0.51230971,95001.0,95000.0,0.00204]
[1736339637179,0.51201944,95001.0,95000.0,0.00204]
[1736339637992,0.56881944,95001.0,95000.0,0.00204]
[1736339640020,0.7731192,95001.0,95000.0,1e-06]
[1736339640191,0.8562192,95001.0,95000.0,1e-06]
[1736339640637,0.85191944,95001.0,95000.0,1e-06]
[1736339640875,0.85191944,95001.0,94977.0,0.00015265]
[1736339640876,0.442375,94978.0,94977.0,0.00015265]
[1736339641089,0.56967476,94978.0,94977.0,0.00015265]
[1736339642134,0.66967476,94978.0,94977.0,0.00015265]
[1736339642403,0.56967476,94978.0,94977.0,0.00015265]
[1736339642860,0.56967476,94978.0,94977.0,0.00315265]
[1736339643468,0.48787476,94978.0,94977.0,0.00015265]
[1736339643670,0.48987476,94978.0,94977.0,0.00015265]
[1736339643807,0.48987476,94978.0,94977.0,0.00215265]
[1736339643808,0.50037624,94978.0,94977.0,0.00215265]
[1736339644224,0.51976072,94978.0,94977.0,0.00215265]
[1736339644651,0.52176072,94978.0,94977.0,0.00215265]
[1736339646995,1.04820072,94978.0,94977.0,0.00215265]
[1736339647807,1.04720072,94978.0,94977.0,0.00215265]
[1736339648376,1.19290072,94978.0,94977.0,6.5e-07]
[1736339648617,1.39720048,94978.0,94977.0,6.5e-07]
[1736339649048,1.47660048,94978.0,94977.0,9.2e-07]
[1736339649257,0.1,94971.0,94970.0,2.2e-07]
[1736339649455,1.21432976,94971.0,94970.0,8.7e-07]
[1736339650066,1.21432976,94971.0,94970.0,0.00808627]
[1736339650460,1.11432976,94971.0,94970.0,0.00808627]
[1736339650684,1.11632976,94971.0,94970.0,0.00808627]
[1736339650897,1.01632976,94971.0,94970.0,0.00808627]
[1736339651144,1.02032976,94971.0,94970.0,0.00808627]
[1736339651745,1.22462952,94971.0,94970.0,0.00808627]
[1736339651957,1.12032976,94971.0,94970.0,0.00808627]
[1736339652168,1.17712976,94971.0,94970.0,0.00808627]
[1736339652370,0.1,94969.0,94968.0,1e-08]
[1736339652572,0.360628,94954.0,94953.0,0.00086575]
[1736339652770,0.46492776,94954.0,94953.0,0.00101848]
[1736339652987,0.4640638,94954.0,94953.0,0.00101848]
[1736339653756,0.4650638,94954.0,94953.0,0.00425773]
[1736339654162,0.4660638,94954.0,94953.0,0.00425773]
[1736339655487,0.99167869,94954.0,94953.0,0.00425773]
[1736339655628,0.99067869,94954.0,94953.0,0.00025773]
[1736339655834,0.99067869,94954.0,94953.0,0.00225773]
[1736339656068,0.98967869,94954.0,94953.0,0.00025773]
[1736339656514,0.98967869,94954.0,94953.0,0.00325773]
[1736339656515,0.99167869,94954.0,94953.0,0.00325773]
[1736339656706,1.03585012,94954.0,94953.0,0.00325773]
[1736339656905,1.03385012,94954.0,94953.0,0.00325773]
[1736339657126,1.0328617,94954.0,94953.0,0.00325773]
[1736339657326,1.04513895,94954.0,94953.0,0.00325773]
[1736339657711,1.04313895,94954.0,94953.0,0.00325773]
[1736339658084,1.04513895,94954.0,94953.0,0.00325773]
[1736339658688,1.04513895,94954.0,94953.0,0.00025773]
[1736339659136,1.04513895,94954.0,94953.0,0.00325773]
[1736339661719,1.04513895,94954.0,94953.0,0.00413962]
[1736339663266,1.02213895,94954.0,94953.0,0.00413962]
[1736339663475,1.02213895,94954.0,94953.0,0.08403962]
[1736339663476,0.85096752,94954.0,94953.0,0.08403962]
[1736339664246,0.84069027,94954.0,94953.0,0.13393962]
[1736339664651,0.84069027,94954.0,94953.0,0.13397962]
[1736339664857,0.83869027,94954.0,94953.0,0.13397962]
[1736339665024,0.83869027,94954.0,94953.0,0.13097962]
[1736339665762,0.63073976,94954.0,94953.0,0.13497962]
[1736339666116,0.63073976,94954.0,94953.0,0.13097962]
[1736339666317,0.63373976,94954.0,94953.0,0.13897962]
[1736339666704,0.63073976,94954.0,94953.0,0.13097962]
[1736339666904,0.63173976,94954.0,94953.0,0.13897962]
[1736339668229,0.63173976,94954.0,94953.0,0.15287758]
[1736339668436,0.63073976,94954.0,94953.0,0.15244101]
[1736339668655,0.52744,94954.0,94953.0,0.16044101]
[1736339669082,0.52644,94954.0,94953.0,0.15244101]
[1736339669509,0.52744,94954.0,94953.0,0.16144101]
[1736339669662,0.52644,94954.0,94953.0,0.15244101]
[1736339670060,0.52744,94954.0,94953.0,0.16144101]
[1736339670269,0.52644,94954.0,94953.0,0.15244101]
[1736339671884,0.52744,94954.0,94953.0,0.16144101]
[1736339672085,0.52644,94954.0,94953.0,0.15244101]
[1736339672907,0.210578,94977.0,94953.0,0.21824101]
[1736339673134,0.210578,94977.0,94961.0,0.0752]
[1736339673135,0.210581,94975.0,94961.0,0.0752]
[1736339673363,0.10429976,94974.0,94962.0,0.00105291]
[1736339673654,0.210586,94973.0,94962.0,0.06327074]
[1736339673885,0.10429976,94972.0,94962.0,0.06327074]
[1736339674104,0.10429976,94972.0,94963.0,0.22450596]
[1736339674304,0.210585,94974.0,94963.0,0.01389796]
[1736339674428,0.10429976,94973.0,94964.0,0.00754603]
[1736339676035,0.210565,94983.0,94965.0,0.210603]
[1736339676243,0.210568,94981.0,94966.0,0.0592277]
[1736339676450,0.10429976,94980.0,94966.0,0.0592277]
[1736339677250,0.210572,94979.0,94966.0,0.0592277]
[1736339677462,0.210596,94969.0,94966.0,0.00646531]
[1736339677862,0.210596,94969.0,94966.0,0.007]
[1736339678150,0.210596,94969.0,94967.0,0.00754128]
[1736339678325,0.210592,94971.0,94967.0,0.00754128]
[1736339678460,0.210595,94969.0,94967.0,0.00754128]
[1736339678686,0.210595,94969.0,94968.0,0.0083502]
[1736339678887,0.10429976,94970.0,94968.0,0.0158899]
[1736339679107,0.10429976,94970.0,94968.0,0.0083502]
[1736339679509,0.001,94969.0,94968.0,0.0083502]
[1736339679755,0.10429976,94970.0,94968.0,0.0083502]
[1736339680144,0.10529976,94970.0,94968.0,0.0173502]
[1736339680362,0.10429976,94970.0,94969.0,0.00753812]
[1736339680561,0.10429976,94970.0,94968.0,0.0103502]
[1736339680803,0.001,94969.0,94968.0,0.0193502]
[1736339681004,0.10429976,94970.0,94968.0,0.002]
[1736339681231,0.210595,94969.0,94961.0,0.07596075]
[1736339681408,0.10529976,94970.0,94968.0,0.009]
[1736339681787,0.001,94970.0,94968.0,0.009]
[1736339682199,0.001,94970.0,94969.0,0.00565359]
[1736339682414,0.001,94970.0,94969.0,0.37003231]
[1736339682606,0.001,94970.0,94969.0,0.37097944]
[1736339682808,0.210557,94986.0,94970.0,0.210592]
[1736339683080,0.10429976,94985.0,94971.0,0.00670399]
[1736339683305,0.10429976,94985.0,94972.0,0.210588]
[1736339683506,0.31485976,94985.0,94973.0,0.04297663]
[1736339683706,0.31485976,94985.0,94974.0,1.5]
[1736339683930,0.31485976,94985.0,94974.0,1.50564766]